[Event "Late-Titled-Tuesday-Blitz-June-25-2024"]
[Site "Chess.com"]
[Date "2024.06.25"]
[Round "1"]
[White "CFalcons8"]
[Black "SaraBlackPanther"]
[Result "0-1"]
[WhiteElo "2433"]
[BlackElo "2733"]
[TimeControl "180+1"]
[EndTime "14:06:30 PDT"]
[Termination "SaraBlackPanther won by resignation"]

1. d4 {[%clk 0:03:00.9]} 1... Nf6 {[%clk 0:02:59.4]} 2. c4 {[%clk 0:02:59.6]}
2... g6 {[%clk 0:02:59.6]} 3. Nc3 {[%clk 0:02:57.9]} 3... Bg7 {[%clk 0:03:00.2]}
4. e4 {[%clk 0:02:58.5]} 4... d6 {[%clk 0:03:00.9]} 5. h3 {[%clk 0:02:58.9]}
5... O-O {[%clk 0:03:01.5]} 6. Be3 {[%clk 0:02:59.4]} 6... Nc6 {[%clk
0:02:54.8]} 7. d5 {[%clk 0:02:45.8]} 7... Ne5 {[%clk 0:02:54.6]} 8. f4 {[%clk
0:02:38.3]} 8... Ned7 {[%clk 0:02:54.4]} 9. g4 {[%clk 0:02:38.3]} 9... e6 {[%clk
0:02:50.9]} 10. Qc2 {[%clk 0:02:34.5]} 10... exd5 {[%clk 0:02:48.8]} 11. cxd5
{[%clk 0:02:29.6]} 11... c6 {[%clk 0:02:48]} 12. dxc6 {[%clk 0:02:16]} 12...
bxc6 {[%clk 0:02:48.9]} 13. O-O-O {[%clk 0:02:16.1]} 13... d5 {[%clk 0:02:30.4]}
14. exd5 {[%clk 0:02:04.5]} 14... Nxd5 {[%clk 0:02:28.2]} 15. Nxd5 {[%clk
0:02:04.5]} 15... cxd5 {[%clk 0:02:29.1]} 16. Kb1 {[%clk 0:01:59.9]} 16... Bb7
{[%clk 0:02:23.5]} 17. Bg2 {[%clk 0:01:47.3]} 17... Rc8 {[%clk 0:02:19.8]} 18.
Qf2 {[%clk 0:01:29.2]} 18... Nb6 {[%clk 0:02:13.8]} 19. Nf3 {[%clk 0:01:21.8]}
19... Nc4 {[%clk 0:02:04.8]} 20. Bd4 {[%clk 0:01:03.6]} 20... Re8 {[%clk
0:02:04.8]} 21. Rhe1 {[%clk 0:01:03.1]} 21... Qa5 {[%clk 0:01:57.2]} 22. Rxe8+
{[%clk 0:00:49.1]} 22... Rxe8 {[%clk 0:01:56.6]} 23. Bxg7 {[%clk 0:00:45.1]}
23... Kxg7 {[%clk 0:01:56.2]} 24. Qd4+ {[%clk 0:00:46]} 24... Kg8 {[%clk
0:01:52.3]} 25. Ne5 {[%clk 0:00:37.8]} 25... Nxe5 {[%clk 0:01:41.7]} 26. fxe5
{[%clk 0:00:38.7]} 26... Qc7 {[%clk 0:01:42.2]} 27. Bxd5 {[%clk 0:00:18.7]}
27... Bxd5 {[%clk 0:01:33.4]} 28. Qxd5 {[%clk 0:00:19.6]} 28... Rxe5 {[%clk
0:01:34.1]} 29. Qd8+ {[%clk 0:00:18.4]} 29... Qxd8 {[%clk 0:01:34.4]} 30. Rxd8+
{[%clk 0:00:19.2]} 30... Kg7 {[%clk 0:01:35.3]} 31. Rd7 {[%clk 0:00:19.2]} 31...
a5 {[%clk 0:01:35.6]} 32. Rd3 {[%clk 0:00:19.6]} 32... h5 {[%clk 0:01:36]} 33.
a3 {[%clk 0:00:18.8]} 33... h4 {[%clk 0:01:36.1]} 34. Kc2 {[%clk 0:00:17.7]}
34... g5 {[%clk 0:01:33.9]} 35. b4 {[%clk 0:00:17.7]} 35... a4 {[%clk
0:01:33.2]} 36. Kc3 {[%clk 0:00:17.5]} 36... f5 {[%clk 0:01:26]} 37. gxf5 {[%clk
0:00:15.1]} 37... Kf6 {[%clk 0:01:26.7]} 38. Kc4 {[%clk 0:00:14.5]} 38... Re2
{[%clk 0:01:24.3]} 39. Kb5 {[%clk 0:00:14.3]} 39... Rg2 {[%clk 0:01:23.9]} 40.
Kxa4 {[%clk 0:00:13.6]} 40... Rg3 {[%clk 0:01:24.5]} 41. Rd5 {[%clk 0:00:13.7]}
41... Rxh3 {[%clk 0:01:24]} 42. Kb5 {[%clk 0:00:14.6]} 42... Rxa3 {[%clk
0:01:23]} 43. Kb6 {[%clk 0:00:12.4]} 43... h3 {[%clk 0:01:22.7]} 44. b5 {[%clk
0:00:12.2]} 44... g4 {[%clk 0:01:20.2]} 45. Kb7 {[%clk 0:00:11.2]} 45... h2
{[%clk 0:01:20]} 0-1

[Event "Late-Titled-Tuesday-Blitz-June-25-2024"]
[Site "Chess.com"]
[Date "2024.06.25"]
[Round "1"]
[White "RantomOpening"]
[Black "cakeuvdort"]
[Result "0-1"]
[WhiteElo "2595"]
[BlackElo "2318"]
[TimeControl "180+1"]
[EndTime "14:06:30 PDT"]
[Termination "cakeuvdort won by checkmate"]

1. d4 {[%clk 0:02:51.9]} 1... Nf6 {[%clk 0:02:59.8]} 2. Nf3 {[%clk 0:02:51.9]}
2... c5 {[%clk 0:02:53.4]} 3. e3 {[%clk 0:02:51.4]} 3... d5 {[%clk 0:02:52.3]}
4. b3 {[%clk 0:02:50.4]} 4... Bg4 {[%clk 0:02:45]} 5. Bd3 {[%clk 0:02:38.9]}
5... Nc6 {[%clk 0:02:44.8]} 6. Bb2 {[%clk 0:02:39.2]} 6... e6 {[%clk 0:02:44]}
7. Nbd2 {[%clk 0:02:39.4]} 7... cxd4 {[%clk 0:02:21.8]} 8. exd4 {[%clk
0:02:38.8]} 8... Be7 {[%clk 0:02:12.7]} 9. O-O {[%clk 0:02:37.4]} 9... O-O
{[%clk 0:02:12.7]} 10. h3 {[%clk 0:02:23]} 10... Bh5 {[%clk 0:02:12.3]} 11. a3
{[%clk 0:02:23.1]} 11... Rc8 {[%clk 0:02:09.1]} 12. Rc1 {[%clk 0:02:22.3]} 12...
Qa5 {[%clk 0:01:53.7]} 13. b4 {[%clk 0:02:20]} 13... Qb6 {[%clk 0:01:50.2]} 14.
c3 {[%clk 0:02:19.3]} 14... Rfd8 {[%clk 0:01:27.5]} 15. Be2 {[%clk 0:02:17.3]}
15... a5 {[%clk 0:01:20.4]} 16. Re1 {[%clk 0:02:15.2]} 16... axb4 {[%clk
0:01:03.4]} 17. axb4 {[%clk 0:02:16.1]} 17... Bd6 {[%clk 0:00:43.9]} 18. Ne5
{[%clk 0:02:07.6]} 18... Bxe2 {[%clk 0:00:41.6]} 19. Qxe2 {[%clk 0:02:08.5]}
19... Bxe5 {[%clk 0:00:33.2]} 20. dxe5 {[%clk 0:02:09.4]} 20... Nd7 {[%clk
0:00:33.8]} 21. Nf3 {[%clk 0:02:07.4]} 21... Na7 {[%clk 0:00:28.6]} 22. Nd4
{[%clk 0:02:04.3]} 22... Rc4 {[%clk 0:00:28.3]} 23. f4 {[%clk 0:01:48.9]} 23...
Nb5 {[%clk 0:00:20.2]} 24. Red1 {[%clk 0:01:45.6]} 24... Rdc8 {[%clk 0:00:15.4]}
25. Qf2 {[%clk 0:01:33.1]} 25... Nxd4 {[%clk 0:00:13.9]} 26. cxd4 {[%clk
0:01:34]} 26... Qxb4 {[%clk 0:00:12.8]} 27. Rb1 {[%clk 0:01:33.8]} 27... Rc2
{[%clk 0:00:12.3]} 28. Ba1 {[%clk 0:01:17]} 28... Rxf2 {[%clk 0:00:12.1]} 29.
Rxb4 {[%clk 0:01:16.5]} 29... Rcc2 {[%clk 0:00:12.8]} 30. Rxb7 {[%clk
0:01:14.8]} 30... Rxg2+ {[%clk 0:00:12.6]} 31. Kh1 {[%clk 0:01:14.9]} 31... Rh2+
{[%clk 0:00:12.4]} 32. Kg1 {[%clk 0:01:15.2]} 32... Rcg2+ {[%clk 0:00:12.3]} 33.
Kf1 {[%clk 0:01:15.6]} 33... Nf8 {[%clk 0:00:09.6]} 34. Rb8 {[%clk 0:01:13.3]}
34... Rf2+ {[%clk 0:00:08.9]} 35. Kg1 {[%clk 0:01:13]} 35... Rfg2+ {[%clk
0:00:09.3]} 36. Kf1 {[%clk 0:01:03.1]} 36... Ra2 {[%clk 0:00:08.3]} 37. Bc3
{[%clk 0:00:59.8]} 37... Rh1# {[%clk 0:00:08.2]} 0-1

[Event "Late-Titled-Tuesday-Blitz-June-25-2024"]
[Site "Chess.com"]
[Date "2024.06.25"]
[Round "1"]
[White "AlexOstrovskiy"]
[Black "Engima32"]
[Result "1-0"]
[WhiteElo "2718"]
[BlackElo "2425"]
[TimeControl "180+1"]
[EndTime "14:06:32 PDT"]
[Termination "AlexOstrovskiy won by checkmate"]

1. e4 {[%clk 0:03:00.9]} 1... c5 {[%clk 0:02:56.8]} 2. Nc3 {[%clk 0:03:00.1]}
2... g6 {[%clk 0:02:51.9]} 3. d4 {[%clk 0:02:59.7]} 3... Bg7 {[%clk 0:02:51.8]}
4. dxc5 {[%clk 0:02:59.6]} 4... Nc6 {[%clk 0:02:51.8]} 5. Bd2 {[%clk 0:02:51.8]}
5... Nf6 {[%clk 0:02:50.5]} 6. Nf3 {[%clk 0:02:45.9]} 6... O-O {[%clk 0:02:50]}
7. Bc4 {[%clk 0:02:35.2]} 7... Qa5 {[%clk 0:02:48.7]} 8. Nb5 {[%clk 0:02:33.7]}
8... Qd8 {[%clk 0:02:48]} 9. Qe2 {[%clk 0:02:29.6]} 9... a6 {[%clk 0:02:47.8]}
10. Nc3 {[%clk 0:02:28.9]} 10... Qa5 {[%clk 0:02:34.2]} 11. Nd5 {[%clk
0:01:34.7]} 11... Qxc5 {[%clk 0:02:24.6]} 12. O-O {[%clk 0:01:15.8]} 12... b5
{[%clk 0:02:21.7]} 13. Bb3 {[%clk 0:01:12.7]} 13... Bb7 {[%clk 0:02:08.2]} 14.
Be3 {[%clk 0:01:01]} 14... Qd6 {[%clk 0:02:07.7]} 15. Bf4 {[%clk 0:00:46.1]}
15... e5 {[%clk 0:02:01.2]} 16. Nxf6+ {[%clk 0:00:43.3]} 16... Qxf6 {[%clk
0:01:54.8]} 17. Bg5 {[%clk 0:00:42.1]} 17... Qd6 {[%clk 0:01:53.2]} 18. Rad1
{[%clk 0:00:42.5]} 18... Qc7 {[%clk 0:01:53.4]} 19. c3 {[%clk 0:00:39.6]} 19...
h6 {[%clk 0:01:52.9]} 20. Be3 {[%clk 0:00:34.9]} 20... Rad8 {[%clk 0:01:49.8]}
21. h3 {[%clk 0:00:31.5]} 21... Na5 {[%clk 0:01:49.6]} 22. Bd5 {[%clk
0:00:31.6]} 22... Bxd5 {[%clk 0:01:49.2]} 23. Rxd5 {[%clk 0:00:32.5]} 23... f5
{[%clk 0:01:44]} 24. Rfd1 {[%clk 0:00:21.2]} 24... Nc4 {[%clk 0:01:38.2]} 25.
Nd2 {[%clk 0:00:13.6]} 25... Nxb2 {[%clk 0:01:31.7]} 26. Rb1 {[%clk 0:00:13.4]}
26... Na4 {[%clk 0:01:30.8]} 27. Rc1 {[%clk 0:00:07.1]} 27... f4 {[%clk
0:01:30.3]} 28. Qg4 {[%clk 0:00:02.6]} 28... fxe3 {[%clk 0:01:29.4]} 29. fxe3
{[%clk 0:00:03.5]} 29... Nxc3 {[%clk 0:01:27.6]} 30. Kh2 {[%clk 0:00:02.4]}
30... Qa5 {[%clk 0:01:24.3]} 31. Rd3 {[%clk 0:00:02.1]} 31... b4 {[%clk
0:01:22.5]} 32. Qxg6 {[%clk 0:00:01.3]} 32... Rf2 {[%clk 0:01:19.6]} 33. Rd6
{[%clk 0:00:01]} 33... Qxa2 {[%clk 0:01:16.3]} 34. Nf3 {[%clk 0:00:01.1]} 34...
Rf8 {[%clk 0:01:12.3]} 35. Nh4 {[%clk 0:00:01.5]} 35... Qf7 {[%clk 0:01:10.8]}
36. Qg4 {[%clk 0:00:01.5]} 36... Qe7 {[%clk 0:01:08.9]} 37. Rg6 {[%clk
0:00:01.5]} 37... R8f6 {[%clk 0:01:07.5]} 38. Nf5 {[%clk 0:00:01.6]} 38... Qf7
{[%clk 0:01:05.4]} 39. Rxg7+ {[%clk 0:00:02.2]} 39... Kf8 {[%clk 0:01:05.1]} 40.
Rxf7+ {[%clk 0:00:02.7]} 40... Kxf7 {[%clk 0:01:06]} 41. Qg7+ {[%clk 0:00:03.2]}
41... Ke8 {[%clk 0:01:04.5]} 42. Qe7# {[%clk 0:00:04.1]} 1-0

[Event "Late-Titled-Tuesday-Blitz-June-25-2024"]
[Site "Chess.com"]
[Date "2024.06.25"]
[Round "1"]
[White "secretworker2027"]
[Black "ferdipy"]
[Result "1-0"]
[WhiteElo "2641"]
[BlackElo "2349"]
[TimeControl "180+1"]
[EndTime "14:06:33 PDT"]
[Termination "secretworker2027 won by resignation"]

1. e4 {[%clk 0:03:00.9]} 1... e6 {[%clk 0:03:00.3]} 2. d4 {[%clk 0:03:00.6]}
2... d5 {[%clk 0:03:01.2]} 3. e5 {[%clk 0:03:01.2]} 3... c5 {[%clk 0:03:00.5]}
4. c3 {[%clk 0:03:01.7]} 4... Nc6 {[%clk 0:03:00.2]} 5. Nf3 {[%clk 0:03:02.1]}
5... Qb6 {[%clk 0:02:59.9]} 6. Bd3 {[%clk 0:03:00.7]} 6... cxd4 {[%clk
0:02:59.5]} 7. O-O {[%clk 0:02:59.9]} 7... Bd7 {[%clk 0:03:00.4]} 8. cxd4 {[%clk
0:02:59]} 8... Nxd4 {[%clk 0:03:01.3]} 9. Nbd2 {[%clk 0:02:58.6]} 9... Nxf3+
{[%clk 0:03:00.9]} 10. Nxf3 {[%clk 0:02:58.4]} 10... Bc5 {[%clk 0:03:01.6]} 11.
b4 {[%clk 0:02:56.4]} 11... Qxb4 {[%clk 0:02:57.6]} 12. Rb1 {[%clk 0:02:54.3]}
12... Qa5 {[%clk 0:02:55.8]} 13. Rxb7 {[%clk 0:02:53.8]} 13... Bc6 {[%clk
0:02:54.5]} 14. Bd2 {[%clk 0:02:44.6]} 14... Qd8 {[%clk 0:02:47.5]} 15. Rb1
{[%clk 0:02:23.7]} 15... Ne7 {[%clk 0:02:46.5]} 16. Ng5 {[%clk 0:02:18.4]} 16...
Ng6 {[%clk 0:02:42.5]} 17. Qc2 {[%clk 0:02:12.1]} 17... Qe7 {[%clk 0:02:26.4]}
18. Bxg6 {[%clk 0:02:05.5]} 18... hxg6 {[%clk 0:02:24.7]} 19. Rbc1 {[%clk
0:02:05.6]} 19... Bb5 {[%clk 0:01:51.6]} 20. Qxc5 {[%clk 0:02:02.3]} 20... Qxc5
{[%clk 0:01:46.6]} 21. Rxc5 {[%clk 0:02:02.1]} 21... Bxf1 {[%clk 0:01:44.1]} 22.
Kxf1 {[%clk 0:02:03]} 22... O-O {[%clk 0:01:38.8]} 23. Rc7 {[%clk 0:02:02.3]}
23... Rac8 {[%clk 0:01:35.4]} 24. Rxa7 {[%clk 0:02:00.6]} 24... Ra8 {[%clk
0:01:33.6]} 25. Rd7 {[%clk 0:01:57.3]} 25... Rxa2 {[%clk 0:01:32]} 26. Be3
{[%clk 0:01:53.2]} 26... Ra1+ {[%clk 0:01:26.3]} 27. Ke2 {[%clk 0:01:51.4]}
27... Raa8 {[%clk 0:01:25.9]} 28. h4 {[%clk 0:01:24]} 28... Rad8 {[%clk
0:01:18.6]} 29. Rd6 {[%clk 0:01:23.4]} 29... Rxd6 {[%clk 0:01:15.2]} 30. exd6
{[%clk 0:01:23.7]} 30... Rd8 {[%clk 0:01:15.4]} 31. Bc5 {[%clk 0:01:23.6]} 31...
Rd7 {[%clk 0:01:14.7]} 32. Nf3 {[%clk 0:01:22.6]} 32... f6 {[%clk 0:01:15]} 33.
Nd4 {[%clk 0:01:19.7]} 33... Kf7 {[%clk 0:01:12.6]} 34. Nc6 {[%clk 0:01:19.7]}
34... e5 {[%clk 0:01:09.8]} 35. Nb8 {[%clk 0:01:02]} 35... Rd8 {[%clk 0:01:05]}
36. Na6 {[%clk 0:01:01.7]} 36... Ke6 {[%clk 0:01:03.3]} 37. Nc7+ {[%clk
0:01:01.8]} 37... Kd7 {[%clk 0:01:01]} 38. Nxd5 {[%clk 0:00:54.8]} 38... Kc6
{[%clk 0:01:00.4]} 39. Nc7 {[%clk 0:00:55.1]} 39... Rb8 {[%clk 0:00:51.7]} 40.
Ba3 {[%clk 0:00:51.3]} 40... Rb3 {[%clk 0:00:50.7]} 41. Bc5 {[%clk 0:00:45.9]}
41... Rc3 {[%clk 0:00:36.5]} 42. Ne6 {[%clk 0:00:45.9]} 42... Kd7 {[%clk
0:00:34.6]} 43. Nf8+ {[%clk 0:00:46.2]} 43... Ke8 {[%clk 0:00:34.4]} 44. d7+
{[%clk 0:00:46]} 44... Kd8 {[%clk 0:00:33.9]} 45. Bb6+ {[%clk 0:00:45.4]} 1-0

[Event "Late-Titled-Tuesday-Blitz-June-25-2024"]
[Site "Chess.com"]
[Date "2024.06.25"]
[Round "1"]
[White "kasparicy"]
[Black "artin10862"]
[Result "0-1"]
[WhiteElo "2494"]
[BlackElo "2902"]
[TimeControl "180+1"]
[EndTime "14:06:35 PDT"]
[Termination "artin10862 won by resignation"]

1. e4 {[%clk 0:02:26.2]} 1... d5 {[%clk 0:02:59.4]} 2. exd5 {[%clk 0:02:25.6]}
2... Qxd5 {[%clk 0:03:00.3]} 3. Nf3 {[%clk 0:02:26]} 3... Bg4 {[%clk 0:02:56.1]}
4. Be2 {[%clk 0:02:23]} 4... Nc6 {[%clk 0:02:55.9]} 5. d4 {[%clk 0:02:23.6]}
5... O-O-O {[%clk 0:02:54.2]} 6. Be3 {[%clk 0:02:24.2]} 6... Qh5 {[%clk
0:02:40.3]} 7. c4 {[%clk 0:02:17.9]} 7... e5 {[%clk 0:02:39.6]} 8. d5 {[%clk
0:02:17.3]} 8... e4 {[%clk 0:02:34.7]} 9. Nd4 {[%clk 0:02:03.3]} 9... Bxe2
{[%clk 0:02:24.3]} 10. Nxe2 {[%clk 0:02:04.2]} 10... Ne5 {[%clk 0:02:19.8]} 11.
O-O {[%clk 0:02:03.3]} 11... Nxc4 {[%clk 0:02:08.2]} 12. Nbc3 {[%clk 0:01:58.9]}
12... Bd6 {[%clk 0:01:56.5]} 13. g3 {[%clk 0:01:32.1]} 13... Nxe3 {[%clk
0:01:49.5]} 14. fxe3 {[%clk 0:01:30.1]} 14... Nf6 {[%clk 0:01:50.1]} 15. Qa4
{[%clk 0:01:17.5]} 15... Ng4 {[%clk 0:01:44.8]} 16. h4 {[%clk 0:01:11.6]} 16...
Nxe3 {[%clk 0:01:40.3]} 17. Qxa7 {[%clk 0:01:04.3]} 17... Nxf1 {[%clk
0:01:40.2]} 18. Rxf1 {[%clk 0:01:03.4]} 18... f5 {[%clk 0:01:31.5]} 19. Qa8+
{[%clk 0:01:01.9]} 19... Kd7 {[%clk 0:01:31.5]} 20. Qxb7 {[%clk 0:01:02.8]}
20... Rb8 {[%clk 0:01:29.3]} 21. Qc6+ {[%clk 0:01:02.4]} 21... Ke7 {[%clk
0:01:27]} 22. Nd4 {[%clk 0:00:43.3]} 22... Rhf8 {[%clk 0:01:22.5]} 23. Ne6
{[%clk 0:00:32.2]} 23... Qg4 {[%clk 0:01:21.3]} 24. Rf2 {[%clk 0:00:24.1]} 24...
Qxg3+ {[%clk 0:01:18.9]} 25. Kf1 {[%clk 0:00:24.5]} 25... Qd3+ {[%clk
0:01:12.5]} 26. Kg1 {[%clk 0:00:24.1]} 26... Qg3+ {[%clk 0:01:02.2]} 27. Kf1
{[%clk 0:00:23.7]} 27... e3 {[%clk 0:01:02.4]} 28. Rg2 {[%clk 0:00:16.7]} 28...
Qf3+ {[%clk 0:00:55.4]} 29. Kg1 {[%clk 0:00:17]} 29... g6 {[%clk 0:00:50.6]} 30.
Nxf8 {[%clk 0:00:13.8]} 30... Kxf8 {[%clk 0:00:47.3]} 31. Ne2 {[%clk 0:00:14]}
31... Rxb2 {[%clk 0:00:44.7]} 32. Qa8+ {[%clk 0:00:13.5]} 32... Kg7 {[%clk
0:00:44.5]} 33. Qe8 {[%clk 0:00:10.9]} 33... Rb1+ {[%clk 0:00:43.3]} 0-1

[Event "Late-Titled-Tuesday-Blitz-June-25-2024"]
[Site "Chess.com"]
[Date "2024.06.25"]
[Round "1"]
[White "burbur555"]
[Black "laskakid"]
[Result "1-0"]
[WhiteElo "2701"]
[BlackElo "2403"]
[TimeControl "180+1"]
[EndTime "14:06:40 PDT"]
[Termination "burbur555 won on time"]

1. d4 {[%clk 0:02:59.3]} 1... f5 {[%clk 0:02:59]} 2. g3 {[%clk 0:02:58.4]} 2...
Nf6 {[%clk 0:02:59]} 3. Bg2 {[%clk 0:02:58.6]} 3... g6 {[%clk 0:02:59.6]} 4. c3
{[%clk 0:02:54.3]} 4... Bg7 {[%clk 0:02:59.1]} 5. Qb3 {[%clk 0:02:54.9]} 5...
Nc6 {[%clk 0:02:55.5]} 6. Nf3 {[%clk 0:02:53.2]} 6... e6 {[%clk 0:02:40.8]} 7.
Nbd2 {[%clk 0:02:48.6]} 7... O-O {[%clk 0:02:36.1]} 8. O-O {[%clk 0:02:47.9]}
8... d6 {[%clk 0:02:31.4]} 9. Re1 {[%clk 0:02:47.6]} 9... d5 {[%clk 0:02:20.7]}
10. Qc2 {[%clk 0:02:43.1]} 10... Ne4 {[%clk 0:02:11.1]} 11. Nf1 {[%clk
0:02:39.5]} 11... g5 {[%clk 0:02:00.7]} 12. N3d2 {[%clk 0:02:37.7]} 12... Nd6
{[%clk 0:01:51.2]} 13. e3 {[%clk 0:02:18.3]} 13... Ne7 {[%clk 0:01:47.6]} 14. f3
{[%clk 0:02:16.3]} 14... Ng6 {[%clk 0:01:43.7]} 15. e4 {[%clk 0:02:15.4]} 15...
c6 {[%clk 0:01:37.4]} 16. exf5 {[%clk 0:01:53.8]} 16... exf5 {[%clk 0:01:32.7]}
17. Nb3 {[%clk 0:01:41.2]} 17... f4 {[%clk 0:01:29.9]} 18. g4 {[%clk 0:01:41.2]}
18... Nh4 {[%clk 0:01:24.8]} 19. h3 {[%clk 0:01:41]} 19... Bd7 {[%clk
0:01:13.4]} 20. Nc5 {[%clk 0:01:39.8]} 20... Be8 {[%clk 0:01:13.4]} 21. Ne6
{[%clk 0:01:33.1]} 21... Bg6 {[%clk 0:01:03.9]} 22. Qf2 {[%clk 0:01:32]} 22...
Qd7 {[%clk 0:01:00.3]} 23. Nxf8 {[%clk 0:01:30.1]} 23... Rxf8 {[%clk 0:01:00.1]}
24. Nd2 {[%clk 0:01:27.7]} 24... h5 {[%clk 0:00:56.3]} 25. Nb3 {[%clk
0:01:26.9]} 25... b6 {[%clk 0:00:53]} 26. Bd2 {[%clk 0:01:25.5]} 26... hxg4
{[%clk 0:00:39.8]} 27. hxg4 {[%clk 0:01:24.5]} 27... Bf7 {[%clk 0:00:37.3]} 28.
Nc1 {[%clk 0:01:17.6]} 28... Be6 {[%clk 0:00:36.2]} 29. Nd3 {[%clk 0:01:16]}
29... Nc4 {[%clk 0:00:27]} 30. b3 {[%clk 0:01:12.6]} 30... Nxd2 {[%clk
0:00:23.9]} 31. Qxd2 {[%clk 0:01:11.7]} 31... Bxg4 {[%clk 0:00:24]} 32. Ne5
{[%clk 0:00:56.6]} 32... Bxe5 {[%clk 0:00:19.1]} 33. Rxe5 {[%clk 0:00:56.3]}
33... Bxf3 {[%clk 0:00:13.1]} 34. Rxg5+ {[%clk 0:00:54.1]} 34... Kh7 {[%clk
0:00:13.1]} 35. Qf2 {[%clk 0:00:52]} 35... Nxg2 {[%clk 0:00:04.5]} 36. Qxf3
{[%clk 0:00:50.8]} 1-0

[Event "Late-Titled-Tuesday-Blitz-June-25-2024"]
[Site "Chess.com"]
[Date "2024.06.25"]
[Round "1"]
[White "Hananmo"]
[Black "MoldyTofu"]
[Result "1-0"]
[WhiteElo "2544"]
[BlackElo "2024"]
[TimeControl "180+1"]
[EndTime "14:06:41 PDT"]
[Termination "Hananmo won by resignation"]

1. e4 {[%clk 0:02:58.9]} 1... e6 {[%clk 0:02:57.9]} 2. Qe2 {[%clk 0:02:57.2]}
2... d5 {[%clk 0:02:57.8]} 3. exd5 {[%clk 0:02:57.1]} 3... Qxd5 {[%clk
0:02:58.7]} 4. Nc3 {[%clk 0:02:56.8]} 4... Qd8 {[%clk 0:02:58.3]} 5. g3 {[%clk
0:02:56.2]} 5... Nf6 {[%clk 0:02:58.2]} 6. Bg2 {[%clk 0:02:56.5]} 6... Nc6
{[%clk 0:02:58.7]} 7. Nf3 {[%clk 0:02:56.7]} 7... Bd6 {[%clk 0:02:58]} 8. O-O
{[%clk 0:02:56.9]} 8... O-O {[%clk 0:02:58.6]} 9. d4 {[%clk 0:02:56.7]} 9... Rb8
{[%clk 0:02:56.2]} 10. Bd2 {[%clk 0:02:53.3]} 10... b6 {[%clk 0:02:56.5]} 11.
Rfe1 {[%clk 0:02:51.6]} 11... Bb7 {[%clk 0:02:56.4]} 12. Rad1 {[%clk 0:02:51.2]}
12... Ne7 {[%clk 0:02:56.3]} 13. Ne5 {[%clk 0:02:41.8]} 13... Bxg2 {[%clk
0:02:52.6]} 14. Kxg2 {[%clk 0:02:42.7]} 14... Nfd5 {[%clk 0:02:52.5]} 15. Ne4
{[%clk 0:02:40.9]} 15... Rc8 {[%clk 0:02:41.3]} 16. c4 {[%clk 0:02:39.8]} 16...
Nb4 {[%clk 0:02:33.1]} 17. Nxd6 {[%clk 0:01:46.4]} 17... Qxd6 {[%clk 0:02:22.8]}
18. a3 {[%clk 0:01:42.1]} 18... Nbc6 {[%clk 0:02:17.3]} 19. Bc3 {[%clk
0:01:42.4]} 19... Nxe5 {[%clk 0:02:15.8]} 20. dxe5 {[%clk 0:01:42.8]} 20... Qc6+
{[%clk 0:02:15.2]} 21. Kg1 {[%clk 0:01:43.4]} 21... Rfd8 {[%clk 0:02:14.4]} 22.
h4 {[%clk 0:01:36.4]} 22... Qe8 {[%clk 0:02:03.2]} 23. h5 {[%clk 0:01:32.8]}
23... Rxd1 {[%clk 0:02:01.8]} 24. Rxd1 {[%clk 0:01:33.7]} 24... Rd8 {[%clk
0:02:02.1]} 25. h6 {[%clk 0:01:31.7]} 25... Rxd1+ {[%clk 0:01:57.4]} 26. Qxd1
{[%clk 0:01:32.6]} 26... gxh6 {[%clk 0:01:57.8]} 27. Qh5 {[%clk 0:01:27]} 27...
Qc6 {[%clk 0:01:50]} 28. Qxh6 {[%clk 0:01:23.7]} 28... Qxc4 {[%clk 0:01:49]} 29.
Bd2 {[%clk 0:01:15.3]} 29... Qg4 {[%clk 0:01:41.1]} 30. Bg5 {[%clk 0:01:09.1]}
30... Nf5 {[%clk 0:01:33.2]} 31. Qf6 {[%clk 0:01:08.3]} 31... Qd1+ {[%clk
0:01:22.8]} 32. Kh2 {[%clk 0:00:59.9]} 32... Qh5+ {[%clk 0:01:22.2]} 33. Kg2
{[%clk 0:01:00.2]} 33... Qg6 {[%clk 0:01:02.5]} 34. Qd8+ {[%clk 0:00:59.5]}
34... Kg7 {[%clk 0:01:02.8]} 35. Bf6+ {[%clk 0:01:00.1]} 35... Kh6 {[%clk
0:01:03.1]} 36. Qd2+ {[%clk 0:00:58.1]} 36... Kh5 {[%clk 0:01:02.3]} 37. Qf4
{[%clk 0:00:53.8]} 37... Qg4 {[%clk 0:00:58.3]} 38. Qxg4+ {[%clk 0:00:53.8]}
38... Kxg4 {[%clk 0:00:58.4]} 39. f3+ {[%clk 0:00:54.5]} 39... Kh5 {[%clk
0:00:58.2]} 40. g4+ {[%clk 0:00:55.1]} 40... Kg6 {[%clk 0:00:58.9]} 41. gxf5+
{[%clk 0:00:55.4]} 41... Kxf5 {[%clk 0:00:59.8]} 42. Kg3 {[%clk 0:00:55]} 42...
c5 {[%clk 0:00:56.5]} 43. f4 {[%clk 0:00:54]} 43... b5 {[%clk 0:00:54.5]} 44.
Kf3 {[%clk 0:00:53.1]} 44... a5 {[%clk 0:00:51]} 45. Be7 {[%clk 0:00:39.9]}
45... c4 {[%clk 0:00:49.5]} 46. Bd8 {[%clk 0:00:39.7]} 46... a4 {[%clk
0:00:49.5]} 47. Ba5 {[%clk 0:00:40.1]} 47... h5 {[%clk 0:00:48.4]} 48. Be1
{[%clk 0:00:40.2]} 48... Kg6 {[%clk 0:00:47.4]} 49. Ke4 {[%clk 0:00:40.4]} 49...
Kh6 {[%clk 0:00:46.5]} 50. f5 {[%clk 0:00:39.7]} 50... exf5+ {[%clk 0:00:46.3]}
51. Kxf5 {[%clk 0:00:40.6]} 1-0